Workbook

Sheet MENU
AI10: Barème : | AJ10: =Date_Bareme -> 2021-05-11
B36: TA | H36: STRATEGIE | M36: COURSE | Q36: NOTES | AB36: 00:02:53 | AC36: FIN
B37: NOM | C37: PRENOM | D37: SEXE | E37: Rapport AFLP 3/4 | F37: Degré AFLP 1 | H37: Course 1 | I37: Course 2 | J37: Course 3 | K37: Distance totale | L37: vitesse | M37: Degré AFLP 3 | N37: Degré AFLP 4 | P37: Note AFLP 1 | Q37: Note AFLP 2 | R37: Note 3 | S37: Note 4 | T37: CAP-BEP/20 | U37: Dossard | V37: Alerte | Y37: Arrivée | Z37: Dossard Arrivée | AB37: ALERTE
B38: Coureur 1 | D38: F | E38: 4/4 | F38: 1+ | H38: 2.1 | I38: X | J38: X | K38: =IF(COUNT(H38:J38)=3,SUM(INT(H38:J38),INT(SUM(H38:J38-INT(H38:J38))/0.6),MOD(SUM(H38:J38-INT(H38:J38)),0.6)),"") ->  | L38: =IF(ISNUMBER(K38), (1500/(INT(K38)*0.6+(K38-INT(K38))))*0.036,"") ->  | M38: 1+ | N38: 2- | P38: 6 | Q38: 3 | R38: 0.5 | S38: 1.5 | T38: 11 | U38: V1 | X38: Tps 1 | Y38: 1.2 | Z38: R1
B39: Coureur 2 | D39: G | E39: 2/6 | F39: 2- | H39: 2.47 | I39: 2.22 | J39: 2.03 | K39: 6.46 | L39: 13.30049261 | N39: =IF(COUNT(F39:G39)=2, INT(INT(G39)*60 + ( G39-INT(G39) )*100 ) - INT( (INT(F39)*60 + (F39-INT(F39) )*100 )), "") ->  | P39: 4 | Q39: 2 | R39: =IFERROR(VLOOKUP(M39,BAREME!$AD$24:$AG$36,CHOOSE(LEFT(C39,1)/2, 2,3,4),FALSE),"") ->  | S39: =IFERROR(VLOOKUP(N39,BAREME!$AD$24:$AG$36,CHOOSE(8-LEFT(D39,1)/2, 2,3,4),FALSE),"") ->  | T39: 6 | V39: Il manque 2 note(s) | X39: Tps 2 | Y39: 2.03 | Z39: O2
B40: Coureur 3 | D40: F | E40: 6/2 | F40: 2- | H40: 4.22 | N40: =IF(COUNT(F40:G40)=2, INT(INT(G40)*60 + ( G40-INT(G40) )*100 ) - INT( (INT(F40)*60 + (F40-INT(F40) )*100 )), "") ->  | P40: =IF(COUNT(G40:H40)=2, (INT( (INT(H40)*60 + ( H40-INT(H40) )*100 )) - IF( AND(I40="=",J40="="), INT( (INT(F40)*60 + (F40-INT(F40) )*100 )), INT( (INT(G40)*60 + (G40-INT(G40) )*100 )))), "") ->  | R40: =IFERROR(VLOOKUP(M40,BAREME!$AD$24:$AG$36,CHOOSE(LEFT(C40,1)/2, 2,3,4),FALSE),"") ->  | S40: =IFERROR(VLOOKUP(N40,BAREME!$AD$24:$AG$36,CHOOSE(8-LEFT(D40,1)/2, 2,3,4),FALSE),"") ->  | X40: Tps 3 | Y40: 2.03 | Z40: 15
B41: Coureur 4 | D41: M | F41: 2- | H41: D | K41: =IF(COUNT(H41:J41)=3,SUM(INT(H41:J41),INT(SUM(H41:J41-INT(H41:J41))/0.6),MOD(SUM(H41:J41-INT(H41:J41)),0.6)),"") ->  | L41: =IF(ISNUMBER(K41), (1500/(INT(K41)*0.6+(K41-INT(K41))))*0.036,"") ->  | M41: 1 | N41: 3 | P41: =IF(COUNT(G42:H42)=2, (INT( (INT(H42)*60 + ( H42-INT(H42) )*100 )) - IF( AND(I42="=",J42="="), INT( (INT(F42)*60 + (F42-INT(F42) )*100 )), INT( (INT(G42)*60 + (G42-INT(G42) )*100 )))), "") ->  | R41: =IFERROR(VLOOKUP(M41,BAREME!$AD$24:$AG$36,CHOOSE(LEFT(C42,1)/2, 2,3,4),FALSE),"") ->  | S41: =IFERROR(VLOOKUP(N41,BAREME!$AD$24:$AG$36,CHOOSE(8-LEFT(D42,1)/2, 2,3,4),FALSE),"") ->  | T41: D | X41: Tps 4 | Y41: X | Z41: V1

Sheet BAREME
R1: CAP - BEP 800 m
E2: 2021-05-11
AD3: Mode d'éval AFLP 3 & 4
U4: =$G$11 -> 1- | V4: =$G$12 -> 1+ | W4: =$G$13 -> 2- | X4: =$G$14 -> 2+ | Y4: =$G$15 -> 3- | Z4: =$G$16 -> 3+ | AA4: =$G$17 -> 4- | AB4: =$G$18 -> 4+ | AD4: Niveau
E5: Tolerance course identique + ou - | F5: 3 | I5: Niv Perf | J5: TEMPS | K5: TEMPS | M5: TEMPS | N5: NOTE | O5: TEMPS | P5: NOTE | R5: Decal F | U5: 3 | V5: 4 | W5: 5 | X5: 6 | Y5: 7 | Z5: 8 | AA5: 9 | AB5: 10
I6: / 14 | J6: Filles | K6: Garcons | M6: Filles | N6: / 14 | O6: Garcons | P6: / 14 | R6: Decal G | U6: 2 | V6: 3 | W6: 4 | X6: 5 | Y6: 6 | Z6: 7 | AA6: 8 | AB6: 9 | AF6: Notes 3 & 4
C7: Projet de course | I7: 1a | J7: 5.05 | K7: 4.15 | M7: 0.01 | N7: =I34 -> 5a | O7: 0.01 | P7: =N7 -> 5a | R7: 5a | S7: =M7 -> 0.01 | T7: =O7 -> 0.01 | U7: 6 | V7: 6 | W7: 7 | X7: 7 | Y7: 7 | Z7: 7 | AA7: 7 | AB7: 7 | AE7: /2 | AF7: /4 | AG7: /6
C8: Projets | D8: Projets | E8: Projets | I8: 1b | J8: 5 | K8: 4.04 | M8: =BAREME!J34+0.01 -> 0.01 | N8: =I33 -> 5a | O8: =BAREME!K34+0.01 -> 0.01 | P8: 5a | R8: 5a | S8: 0.01 | T8: 0.01 | U8: 6 | V8: 6 | W8: 7 | X8: 7 | Y8: 7 | Z8: 7 | AA8: 7 | AB8: 7 | AE8: 0 | AF8: 0 | AG8: 0
C9: Réussi | D9: Initiaux | E9: Corrigés | G9: Degré | I9: 1c | J9: 4.55 | K9: 3.58 | M9: =BAREME!J33+0.01 -> 0.01 | N9: =I32 -> 5a | O9: =BAREME!K33+0.01 -> 0.01 | P9: 5a | R9: 5a | S9: 0.01 | T9: 0.01 | U9: 6 | V9: 6 | W9: 7 | X9: 7 | Y9: 7 | Z9: 7 | AA9: 7 | AB9: 7 | AE9: 0.5 | AF9: 0.5 | AG9: 0.5
C10: 0 | D10: 0 | E10: 0 | G10: AFLP 1 | I10: 1d | J10: 4.45 | K10: 3.52 | M10: =BAREME!J32+0.01 -> 0.01 | N10: =I31 -> 5a | O10: =BAREME!K32+0.01 -> 0.01 | P10: 5a | R10: 5a | S10: 0.01 | T10: 0.01 | U10: 6 | V10: 6 | W10: 7 | X10: 7 | Y10: 7 | Z10: 7 | AA10: 7 | AB10: 7 | AE10: 1 | AF10: 1 | AG10: 1
C11: 1 | D11: 1.5 | E11: 1 | G11: 1- | I11: 1e | J11: 4.4 | K11: 3.47 | M11: =BAREME!J31+0.01 -> 0.01 | N11: =I30 -> 5a | O11: =BAREME!K31+0.01 -> 0.01 | P11: 5a | R11: 5a | S11: 0.01 | T11: 0.01 | U11: 6 | V11: 6 | W11: 7 | X11: 7 | Y11: 7 | Z11: 7 | AA11: 7 | AB11: 7 | AE11: 1.5 | AF11: 1.5 | AG11: 1.5
C12: 2 | D12: 3 | E12: 2 | G12: 1+ | I12: 2a | J12: 4.35 | K12: 3.42 | M12: =BAREME!J30+0.01 -> 0.01 | N12: =I29 -> 5a | O12: =BAREME!K30+0.01 -> 0.01 | P12: 5a | R12: 5a | S12: 0.01 | T12: 0.01 | U12: 6 | V12: 6 | W12: 7 | X12: 7 | Y12: 7 | Z12: 7 | AA12: 7 | AB12: 7 | AE12: 2 | AF12: 2 | AG12: 2
G13: 2- | I13: 2b | J13: 4.3 | K13: 3.37 | M13: =BAREME!J29+0.01 -> 0.01 | N13: =I28 -> 5a | O13: =BAREME!K29+0.01 -> 0.01 | P13: 5a | R13: 5a | S13: 0.01 | T13: 0.01 | U13: 6 | V13: 6 | W13: 7 | X13: 7 | Y13: 7 | Z13: 7 | AA13: 7 | AB13: 7 | AF13: 2.5 | AG13: 2.5
B14: Note C1 | D14: 6 | G14: 2+ | I14: 2c | J14: 4.25 | K14: 3.32 | M14: =BAREME!J28+0.01 -> 0.01 | N14: =I27 -> 5a | O14: =BAREME!K28+0.01 -> 0.01 | P14: 5a | R14: 5a | S14: 0.01 | T14: 0.01 | U14: 6 | V14: 6 | W14: 7 | X14: 7 | Y14: 7 | Z14: 7 | AA14: 7 | AB14: 7 | AF14: 3 | AG14: 3
B15: Prepa | D15: 3 | G15: 3- | I15: 2d | J15: 4.2 | K15: 3.28 | M15: =BAREME!J27+0.01 -> 0.01 | N15: =I26 -> 4e | O15: =BAREME!K27+0.01 -> 0.01 | P15: 4e | R15: 5a | S15: 0.01 | T15: 0.01 | U15: 6 | V15: 6 | W15: 7 | X15: 7 | Y15: 7 | Z15: 7 | AA15: 7 | AB15: 7 | AF15: 3.5 | AG15: 3.5
G16: 3+ | I16: 2e | J16: 4.15 | K16: 3.21 | M16: =BAREME!J26+0.01 -> 3.36 | N16: =I25 -> 4d | O16: =BAREME!K26+0.01 -> 2.41 | P16: 4d | R16: 4e | S16: 3.36 | T16: 2.41 | U16: 6 | V16: 6 | W16: 7 | X16: 7 | Y16: 7 | Z16: 7 | AA16: 7 | AB16: 7 | AF16: 4 | AG16: 4
G17: 4- | I17: 3a | J17: 4.1 | K17: 3.17 | M17: =BAREME!J25+0.01 -> 3.39 | N17: =I24 -> 4c | O17: =BAREME!K25+0.01 -> 2.51 | P17: 4c | R17: 4d | S17: 3.39 | T17: 2.51 | U17: 6 | V17: 6 | W17: 6 | X17: 7 | Y17: 7 | Z17: 7 | AA17: 7 | AB17: 7 | AG17: 4.5
G18: 4+ | I18: 3b | J18: 4.05 | K18: 3.13 | M18: =BAREME!J24+0.01 -> 3.42 | N18: =I23 -> 4b | O18: =BAREME!K24+0.01 -> 2.53 | P18: 4b | R18: 4c | S18: 3.42 | T18: 2.53 | U18: 6 | V18: 6 | W18: 6 | X18: 6 | Y18: 6 | Z18: 6 | AA18: 6 | AB18: 6 | AG18: 5
I19: 3c | J19: 4 | K19: 3.09 | M19: =BAREME!J23+0.01 -> 3.46 | N19: =I22 -> 4a | O19: =BAREME!K23+0.01 -> 2.56 | P19: 4a | R19: 4b | S19: 3.46 | T19: 2.56 | U19: 5 | V19: 6 | W19: 6 | X19: 6 | Y19: 6 | Z19: 6 | AA19: 6 | AB19: 6 | AG19: 5.5
I20: 3d | J20: 3.57 | K20: 3.05 | M20: =BAREME!J22+0.01 -> 3.5 | N20: =I21 -> 3e | O20: =BAREME!K22+0.01 -> 2.59 | P20: 3e | R20: 4a | S20: 3.5 | T20: 2.59 | U20: 5 | V20: 5 | W20: 5 | X20: 5 | Y20: 6 | Z20: 6 | AA20: 6 | AB20: 6 | AG20: 6
C21: Distance totale | E21: 800 | G21: Note | I21: 3e | J21: 3.53 | K21: 3.01 | M21: =BAREME!J21+0.01 -> 3.54 | N21: =I20 -> 3d | O21: =BAREME!K21+0.01 -> 3.02 | P21: 3d | R21: 3e | S21: 3.54 | T21: 3.02 | U21: 5 | V21: 5 | W21: 5 | X21: 5 | Y21: 5 | Z21: 5 | AA21: 5 | AB21: 6
C22: Nb de Courses | E22: 1 | G22: AFLP 2 | I22: 4a | J22: 3.49 | K22: 2.58 | M22: =BAREME!J20+0.01 -> 3.58 | N22: =I19 -> 3c | O22: =BAREME!K20+0.01 -> 3.06 | P22: 3c | R22: 3d | S22: 3.58 | T22: 3.06 | U22: 4 | V22: 4 | W22: 4 | X22: 5 | Y22: 5 | Z22: 5 | AA22: 5 | AB22: 5
G23: 0 | I23: 4b | J23: 3.45 | K23: 2.55 | M23: =BAREME!J19+0.01 -> 4.01 | N23: =I18 -> 3b | O23: =BAREME!K19+0.01 -> 3.1 | P23: 3b | R23: 3c | S23: 4.01 | T23: 3.1 | U23: 4 | V23: 4 | W23: 4 | X23: 4 | Y23: 4 | Z23: 5 | AA23: 5 | AB23: 5 | AD23: Niveau | AF23: Notes 3 & 4
G24: 0.5 | I24: 4c | J24: 3.41 | K24: 2.52 | M24: =BAREME!J18+0.01 -> 4.06 | N24: =I17 -> 3a | O24: =BAREME!K18+0.01 -> 3.14 | P24: 3a | R24: 3b | S24: 4.06 | T24: 3.14 | U24: 4 | V24: 4 | W24: 4 | X24: 4 | Y24: 4 | Z24: 4 | AA24: 4 | AB24: 4 | AD24: AFLP 3 /4 | AE24: /2 | AF24: /4 | AG24: /6
G25: 1 | I25: 4d | J25: 3.38 | K25: 2.5 | M25: =BAREME!J17+0.01 -> 4.11 | N25: =I16 -> 2e | O25: =BAREME!K17+0.01 -> 3.18 | P25: 2e | R25: 3a | S25: 4.11 | T25: 3.18 | U25: 3 | V25: 3 | W25: 3 | X25: 4 | Y25: 4 | Z25: 4 | AA25: 4 | AB25: 4 | AD25: 1- | AE25: 0 | AF25: 0 | AG25: 0
G26: 1.5 | I26: 4e | J26: 3.35 | K26: 2.4 | M26: =BAREME!J16+0.01 -> 4.16 | N26: =I15 -> 2d | O26: =BAREME!K16+0.01 -> 3.22 | P26: 2d | R26: 2e | S26: 4.16 | T26: 3.22 | U26: 3 | V26: 3 | W26: 3 | X26: 3 | Y26: 3 | Z26: 3 | AA26: 4 | AB26: 4 | AD26: 1 | AE26: 0.5 | AF26: 0.5 | AG26: 0.5
C27: Chronometrage | G27: 2 | I27: 5a | M27: =BAREME!J15+0.01 -> 4.21 | N27: =I14 -> 2c | O27: =BAREME!K15+0.01 -> 3.29 | P27: 2c | R27: 2d | S27: 4.21 | T27: 3.29 | U27: 3 | V27: 3 | W27: 3 | X27: 3 | Y27: 3 | Z27: 3 | AA27: 3 | AB27: 3 | AD27: 1+ | AE27: 0.5 | AF27: 0.5 | AG27: 1
B28: 1 Win Clavier & Boutons écran | G28: 2.5 | I28: 5a | M28: =BAREME!J14+0.01 -> 4.26 | N28: =I13 -> 2b | O28: =BAREME!K14+0.01 -> 3.33 | P28: 2b | R28: 2c | S28: 4.26 | T28: 3.33 | U28: 2 | V28: 2 | W28: 2 | X28: 3 | Y28: 3 | Z28: 3 | AA28: 3 | AB28: 3 | AD28: 2- | AE28: 1 | AF28: 1 | AG28: 1.5
B29: =CHOOSE(LEFT(B28,1),"ESC et Fleche Bas + Boutons Ecran TESTER VITESSE DE REACTION"," Clic Droit Souris + ESC et Fleche Bas TESTER VITESSE DE RECATION","Clavier BAS & ESC + Clic sur BOUTON Verifier la vitesse de réaction pour une arrivée groupée ", " Souris = Chrono à distance Tester la vitesse de reaction de l'ordi", "Souris =Chrono à distance Attention à rester sur la bouton Conseil = Masquer le capteur de mvt => Seul le bouton actif" ) -> ESC et Fleche Bas + Boutons Ecran TESTER VITESSE DE REACTION | G29: 3 | I29: 5a | M29: =BAREME!J13+0.01 -> 4.31 | N29: =I12 -> 2a | O29: =BAREME!K13+0.01 -> 3.38 | P29: 2a | R29: 2b | S29: 4.31 | T29: 3.38 | U29: 2 | V29: 2 | W29: 2 | X29: 2 | Y29: 2 | Z29: 3 | AA29: 3 | AB29: 3 | AD29: 2 | AE29: 1 | AF29: 1.5 | AG29: 2
G30: 3.5 | I30: 5a | M30: =BAREME!J12+0.01 -> 4.36 | N30: =I11 -> 1e | O30: =BAREME!K12+0.01 -> 3.43 | P30: 1e | R30: 2a | S30: 4.36 | T30: 3.43 | U30: 1 | V30: 2 | W30: 2 | X30: 2 | Y30: 2 | Z30: 2 | AA30: 2 | AB30: 2 | AD30: 2+ | AE30: 1 | AF30: 1.5 | AG30: 2.5
G31: 4 | I31: 5a | M31: =BAREME!J11+0.01 -> 4.41 | N31: =I10 -> 1d | O31: =BAREME!K11+0.01 -> 3.48 | P31: 1d | R31: 1e | S31: 4.41 | T31: 3.48 | U31: 1 | V31: 1 | W31: 1 | X31: 2 | Y31: 2 | Z31: 2 | AA31: 2 | AB31: 2 | AD31: 3- | AE31: 1.5 | AF31: 2 | AG31: 3
G32: 4.5 | I32: 5a | M32: =BAREME!J10+0.01 -> 4.46 | N32: =I9 -> 1c | O32: =BAREME!K10+0.01 -> 3.53 | P32: 1c | R32: 1d | S32: 4.46 | T32: 3.53 | U32: 1 | V32: 1 | W32: 1 | X32: 1 | Y32: 1 | Z32: 2 | AA32: 2 | AB32: 2 | AD32: 3 | AE32: 1.5 | AF32: 2.5 | AG32: 3.5
C33: Bouton Arrivée | D33: 2 Centre | G33: 5 | I33: 5a | M33: =BAREME!J9+0.01 -> 4.56 | N33: =I8 -> 1b | O33: =BAREME!K9+0.01 -> 3.59 | P33: 1b | R33: 1c | S33: 4.56 | T33: 3.59 | U33: 0 | V33: 1 | W33: 1 | X33: 1 | Y33: 1 | Z33: 1 | AA33: 1 | AB33: 1 | AD33: 3+ | AE33: 1.5 | AF33: 3 | AG33: 4
C34: ZOOM Auto | D34: Auto | I34: 5a | M34: =BAREME!J8+0.01 -> 5.01 | N34: =I7 -> 1a | O34: =BAREME!K8+0.01 -> 4.05 | P34: 1a | R34: 1b | S34: 5.01 | T34: 4.05 | U34: 0 | V34: 0 | W34: 0 | X34: 1 | Y34: 1 | Z34: 1 | AA34: 1 | AB34: 1 | AD34: 3++ | AE34: 1.5 | AF34: 3 | AG34: 4.5
B35: Affiche toutes les colonnes | M35: =BAREME!J7+0.01 -> 5.06 | N35: 0 | O35: =BAREME!K7+0.01 -> 4.16 | P35: 0 | R35: 1a | S35: 5.06 | T35: 4.16 | U35: 0 | V35: 0 | W35: 0 | X35: 0 | Y35: 0 | Z35: 0 | AA35: 1 | AB35: 1 | AD35: 4- | AE35: 2 | AF35: 3.5 | AG35: 5
AD36: 4 | AE36: 2 | AF36: 3.5 | AG36: 5.5
M37: 0 | Q37: 0 | AD37: 4+ | AE37: 2 | AF37: 4 | AG37: 6
B38: Tps max / Course | D38: 8 | M38: 1 | N38: =LEFT(G21) -> N | O38: =RIGHT(G21) -> e | P38: =G21 -> Note | Q38: 1
B39: Pour éviter erreur de saisie | M39: 2 | O39: 2 | P39: AFLP 2 | Q39: 2
M40: 3 | N40: 0 | O40: 0 | P40: 0 | Q40: 3
M41: 4 | N41: 0 | O41: 5 | P41: 0.5 | Q41: 4
M42: 5 | N42: 1 | O42: 1 | P42: 1 | Q42: 5
M43: 6 | N43: 1 | O43: 5 | P43: 1.5 | Q43: 6
M44: 7 | N44: 2 | O44: 2 | P44: 2 | Q44: 7
M45: 8 | N45: 2 | O45: 5 | P45: 2.5 | Q45: 8

Sheet Classe 1
J1: =BAREME!R1 -> CAP - BEP 800 m
B2: Classe 1 | M2: COURSES | X2: NOTES | AI2: 00:00:00
B3: NOM | C3: Prenom | D3: SEXE | E3: Rapport AFLP 3/4 | F3: Degré AFLP 1 | H3: Course 1 | I3: Course 2 | J3: Course 3 | K3: Course 4 | L3: Course 5 | M3: =Dist_Tot -> 800 | N3: vitesse | O3: Degré AFLP 3 | P3: Degré AFLP 4 | T3: Note AFLP 1 | U3: Note AFLP 2 | V3: Note 3 | W3: Note 4 | X3: CAP-BEP/20 | Z3: Dossard | AA3: Alerte | AD3: COMMENTAIRES | AI3: Arrivée | AJ3: Dossard Arrivée | AM3: ALERTE
A4: 1 | K4: =IF(ISBLANK(G4),IF(ISERR(VALUE(F4)),LEFT(F4,1),T(VLOOKUP(VALUE(F4),BAREME!$M$37:$O$45,2,FALSE))),IF(ISERR(VALUE(G4)), LEFT(G4,1), T( VLOOKUP(VALUE(G4),BAREME!$M$37:$O$45,2,FALSE)))) ->  | L4: =IF(ISBLANK(G4),IF(ISERR(VALUE(F4)),RIGHT(F4,1),T(VLOOKUP(VALUE(F4),BAREME!$M$37:$O$45,3,FALSE))),IF(ISERR(VALUE(G4)), RIGHT(G4,1), T( VLOOKUP(VALUE(G4),BAREME!$M$37:$O$45,3,FALSE)))) ->  | M4: =IF(COUNT(H4:J4)=Nb_Courses,SUM(INT(H4:J4),INT(SUM(H4:J4-INT(H4:J4))/0.6),MOD(SUM(H4:J4-INT(H4:J4)),0.6)),"") ->  | N4: =IF(ISNUMBER(M4), (Dist_Tot/(INT(M4)*0.6+(M4-INT(M4))))*0.036,"") ->  | T4: =IF(AND(ISNUMBER(M4),D4<>"",F4<>""),VLOOKUP(M4,IF(D4="F",Bareme_F,Bareme_G),Decal),IF(OR(H4="X",I4="X",J4="X"),0,"")) ->  | V4: =IFERROR(VLOOKUP(O4,Niv_AFLP_3_4,CHOOSE(LEFT(E4,1)/2, 2,3,4),FALSE),"") ->  | W4: =IFERROR(VLOOKUP(P4,Niv_AFLP_3_4,CHOOSE(RIGHT(E4,1)/2, 2,3,4),FALSE),"") ->  | X4: =IF(COUNT(T4:W4),SUM(T4:W4),IF(ISTEXT(H4),H4,"")) ->  | AA4: =IFERROR(IF(COUNTIF(Dossard,Z4)>1,"Doublon",IF(OR(X4="A",X4="D"),"", IF(AB4<>"",AB4, IF(AND(D4<>"F",D4<>"G",D4<>"M",D4<>""),"Sexe Non Valide",IF(AND(D4="",M4<>"")," Sexe ?",IF(OR(N(V4)<0,N(V4)>Max_Note3),"Pb Note 3",IF(OR(N(W4)<0,N(W4)>Max_Note4),"Pb Note 4",IF(AND(ISNUMBER(X4),COUNT(T4:W4)<4), "Il manque "& (4-COUNT(T4:W4)) & " note(s)","")))))))), "") ->  | AB4: =IF( COUNT(H4:J4), IF(ISBLANK(F4),"Manque le Degré AFLP1 ",IF(AND(F4<>"",ISERROR(MATCH(F4,Liste_AFLP1,0))),"ErreurDegré AFLP1",IF(AND(ISBLANK(E4),ISNUMBER(X4)),"Manque Rapport AFLP3/4",""))),"") ->  | AH4: Tps 1 | AK4: =IF(ISBLANK(Dossard_Arrivée),"",MATCH(Dossard_Arrivée,Dossard,0)) ->  | AL4: =ISERROR(AK4) -> FALSE | AM4: =IF(AL4," DOSSARD NON ATTRIBUE",IF(COUNTIF(Dossard_Arrivée,Dossard_Arrivée)>1,"Doublon",IF(AND(Dossard_Arrivée<>"",Arrivee=""),"DOSSARD SANS TEMPS",IF(AND(Dossard_Arrivée="",Arrivee<>""),"TEMPS SANS DOSSARD","")))) -> 
A5: 2 | K5: =IF(ISBLANK(G5),IF(ISERR(VALUE(F5)),LEFT(F5,1),CHOOSE(VALUE(F5)+1,"","=","+","=","=","-","+","-","+")),IF(ISERR(VALUE(G5)),LEFT(G5,1),CHOOSE(VALUE(G5),"=","+","=","=","-","+","-","+"))) ->  | L5: =IF(ISBLANK(G5),IF(ISERR(VALUE(F5)),RIGHT(F5,1),T(VLOOKUP(VALUE(F5),BAREME!$M$37:$O$45,3,FALSE))),IF(ISERR(VALUE(G5)), RIGHT(G5,1), T( VLOOKUP(VALUE(G5),BAREME!$M$37:$O$45,3,FALSE)))) ->  | M5: =IF(COUNT(H5:J5)=Nb_Courses,SUM(INT(H5:J5),INT(SUM(H5:J5-INT(H5:J5))/0.6),MOD(SUM(H5:J5-INT(H5:J5)),0.6)),"") ->  | N5: =IF(ISNUMBER(M5), (Dist_Tot/(INT(M5)*0.6+(M5-INT(M5))))*0.036,"") ->  | T5: =IF(AND(ISNUMBER(M5),D5<>"",F5<>""),VLOOKUP(M5,IF(D5="F",Bareme_F,Bareme_G),Decal),IF(OR(H5="X",I5="X",J5="X"),0,"")) ->  | X5: =IF(COUNT(T5:W5),SUM(T5:W5),IF(ISTEXT(H5),H5,"")) ->  | AA5: =IFERROR(IF(COUNTIF(Dossard,Z5)>1,"Doublon",IF(OR(X5="A",X5="D"),"", IF(AB5<>"",AB5, IF(AND(D5<>"F",D5<>"G",D5<>"M",D5<>""),"Sexe Non Valide",IF(AND(D5="",M5<>"")," Sexe ?",IF(OR(N(V5)<0,N(V5)>Max_Note3),"Pb Note 3",IF(OR(N(W5)<0,N(W5)>Max_Note4),"Pb Note 4",IF(AND(ISNUMBER(X5),COUNT(T5:W5)<4), "Il manque "& (4-COUNT(T5:W5)) & " note(s)","")))))))), "") ->  | AH5: Tps 2 | AL5: =ISERROR(AK5) -> FALSE
A6: 3 | L6: =IF(ISBLANK(G6),IF(ISERR(VALUE(F6)),RIGHT(F6,1),T(VLOOKUP(VALUE(F6),BAREME!$M$37:$O$45,3,FALSE))),IF(ISERR(VALUE(G6)), RIGHT(G6,1), T( VLOOKUP(VALUE(G6),BAREME!$M$37:$O$45,3,FALSE)))) ->  | M6: =IF(COUNT(H6:J6)=Nb_Courses,SUM(INT(H6:J6),INT(SUM(H6:J6-INT(H6:J6))/0.6),MOD(SUM(H6:J6-INT(H6:J6)),0.6)),"") ->  | T6: =IF(AND(ISNUMBER(M6),D6<>"",F6<>""),VLOOKUP(M6,IF(D6="F",Bareme_F,Bareme_G),Decal),IF(OR(H6="X",I6="X",J6="X"),0,"")) ->  | AA6: =IFERROR(IF(COUNTIF(Dossard,Z6)>1,"Doublon",IF(OR(X6="A",X6="D"),"", IF(AB6<>"",AB6, IF(AND(D6<>"F",D6<>"G",D6<>"M",D6<>""),"Sexe Non Valide",IF(AND(D6="",M6<>"")," Sexe ?",IF(OR(N(V6)<0,N(V6)>Max_Note3),"Pb Note 3",IF(OR(N(W6)<0,N(W6)>Max_Note4),"Pb Note 4",IF(AND(ISNUMBER(X6),COUNT(T6:W6)<4), "Il manque "& (4-COUNT(T6:W6)) & " note(s)","")))))))), "") ->  | AH6: Tps 3 | AL6: FALSE
A7: 4 | L7: =IF(ISBLANK(G7),IF(ISERR(VALUE(F7)),RIGHT(F7,1),T(VLOOKUP(VALUE(F7),BAREME!$M$37:$O$45,3,FALSE))),IF(ISERR(VALUE(G7)), RIGHT(G7,1), T( VLOOKUP(VALUE(G7),BAREME!$M$37:$O$45,3,FALSE)))) ->  | M7: =IF(COUNT(H7:J7)=Nb_Courses,SUM(INT(H7:J7),INT(SUM(H7:J7-INT(H7:J7))/0.6),MOD(SUM(H7:J7-INT(H7:J7)),0.6)),"") ->  | T7: =IF(AND(ISNUMBER(M7),D7<>"",F7<>""),VLOOKUP(M7,IF(D7="F",Bareme_F,Bareme_G),Decal),IF(OR(H7="X",I7="X",J7="X"),0,"")) ->  | AA7: =IFERROR(IF(COUNTIF(Dossard,Z7)>1,"Doublon",IF(OR(X7="A",X7="D"),"", IF(AB7<>"",AB7, IF(AND(D7<>"F",D7<>"G",D7<>"M",D7<>""),"Sexe Non Valide",IF(AND(D7="",M7<>"")," Sexe ?",IF(OR(N(V7)<0,N(V7)>Max_Note3),"Pb Note 3",IF(OR(N(W7)<0,N(W7)>Max_Note4),"Pb Note 4",IF(AND(ISNUMBER(X7),COUNT(T7:W7)<4), "Il manque "& (4-COUNT(T7:W7)) & " note(s)","")))))))), "") ->  | AH7: Tps 4 | AL7: FALSE
A8: 5 | L8: =IF(ISBLANK(G8),IF(ISERR(VALUE(F8)),RIGHT(F8,1),T(VLOOKUP(VALUE(F8),BAREME!$M$37:$O$45,3,FALSE))),IF(ISERR(VALUE(G8)), RIGHT(G8,1), T( VLOOKUP(VALUE(G8),BAREME!$M$37:$O$45,3,FALSE)))) ->  | M8: =IF(COUNT(H8:J8)=Nb_Courses,SUM(INT(H8:J8),INT(SUM(H8:J8-INT(H8:J8))/0.6),MOD(SUM(H8:J8-INT(H8:J8)),0.6)),"") ->  | T8: =IF(AND(ISNUMBER(M8),D8<>"",F8<>""),VLOOKUP(M8,IF(D8="F",Bareme_F,Bareme_G),Decal),IF(OR(H8="X",I8="X",J8="X"),0,"")) ->  | AA8: =IFERROR(IF(COUNTIF(Dossard,Z8)>1,"Doublon",IF(OR(X8="A",X8="D"),"", IF(AB8<>"",AB8, IF(AND(D8<>"F",D8<>"G",D8<>"M",D8<>""),"Sexe Non Valide",IF(AND(D8="",M8<>"")," Sexe ?",IF(OR(N(V8)<0,N(V8)>Max_Note3),"Pb Note 3",IF(OR(N(W8)<0,N(W8)>Max_Note4),"Pb Note 4",IF(AND(ISNUMBER(X8),COUNT(T8:W8)<4), "Il manque "& (4-COUNT(T8:W8)) & " note(s)","")))))))), "") ->  | AH8: Tps 5 | AL8: FALSE
A9: 4 | L9: =IF(ISBLANK(G9),IF(ISERR(VALUE(F9)),RIGHT(F9,1),T(VLOOKUP(VALUE(F9),BAREME!$M$37:$O$45,3,FALSE))),IF(ISERR(VALUE(G9)), RIGHT(G9,1), T( VLOOKUP(VALUE(G9),BAREME!$M$37:$O$45,3,FALSE)))) ->  | M9: =IF(COUNT(H9:J9)=Nb_Courses,SUM(INT(H9:J9),INT(SUM(H9:J9-INT(H9:J9))/0.6),MOD(SUM(H9:J9-INT(H9:J9)),0.6)),"") ->  | T9: =IF(AND(ISNUMBER(M9),D9<>"",F9<>""),VLOOKUP(M9,IF(D9="F",Bareme_F,Bareme_G),Decal),IF(OR(H9="X",I9="X",J9="X"),0,"")) ->  | AA9: =IFERROR(IF(COUNTIF(Dossard,Z9)>1,"Doublon",IF(OR(X9="A",X9="D"),"", IF(AB9<>"",AB9, IF(AND(D9<>"F",D9<>"G",D9<>"M",D9<>""),"Sexe Non Valide",IF(AND(D9="",M9<>"")," Sexe ?",IF(OR(N(V9)<0,N(V9)>Max_Note3),"Pb Note 3",IF(OR(N(W9)<0,N(W9)>Max_Note4),"Pb Note 4",IF(AND(ISNUMBER(X9),COUNT(T9:W9)<4), "Il manque "& (4-COUNT(T9:W9)) & " note(s)","")))))))), "") ->  | AH9: Tps 6 | AL9: FALSE
A10: 7 | L10: =IF(ISBLANK(G10),IF(ISERR(VALUE(F10)),RIGHT(F10,1),T(VLOOKUP(VALUE(F10),BAREME!$M$37:$O$45,3,FALSE))),IF(ISERR(VALUE(G10)), RIGHT(G10,1), T( VLOOKUP(VALUE(G10),BAREME!$M$37:$O$45,3,FALSE)))) ->  | M10: =IF(COUNT(H10:J10)=Nb_Courses,SUM(INT(H10:J10),INT(SUM(H10:J10-INT(H10:J10))/0.6),MOD(SUM(H10:J10-INT(H10:J10)),0.6)),"") ->  | T10: =IF(AND(ISNUMBER(M10),D10<>"",F10<>""),VLOOKUP(M10,IF(D10="F",Bareme_F,Bareme_G),Decal),IF(OR(H10="X",I10="X",J10="X"),0,"")) ->  | AA10: =IFERROR(IF(COUNTIF(Dossard,Z10)>1,"Doublon",IF(OR(X10="A",X10="D"),"", IF(AB10<>"",AB10, IF(AND(D10<>"F",D10<>"G",D10<>"M",D10<>""),"Sexe Non Valide",IF(AND(D10="",M10<>"")," Sexe ?",IF(OR(N(V10)<0,N(V10)>Max_Note3),"Pb Note 3",IF(OR(N(W10)<0,N(W10)>Max_Note4),"Pb Note 4",IF(AND(ISNUMBER(X10),COUNT(T10:W10)<4), "Il manque "& (4-COUNT(T10:W10)) & " note(s)","")))))))), "") ->  | AH10: Tps 7 | AL10: FALSE
A11: 8 | L11: =IF(ISBLANK(G11),IF(ISERR(VALUE(F11)),RIGHT(F11,1),T(VLOOKUP(VALUE(F11),BAREME!$M$37:$O$45,3,FALSE))),IF(ISERR(VALUE(G11)), RIGHT(G11,1), T( VLOOKUP(VALUE(G11),BAREME!$M$37:$O$45,3,FALSE)))) ->  | M11: =IF(COUNT(H11:J11)=Nb_Courses,SUM(INT(H11:J11),INT(SUM(H11:J11-INT(H11:J11))/0.6),MOD(SUM(H11:J11-INT(H11:J11)),0.6)),"") ->  | T11: =IF(AND(ISNUMBER(M11),D11<>"",F11<>""),VLOOKUP(M11,IF(D11="F",Bareme_F,Bareme_G),Decal),IF(OR(H11="X",I11="X",J11="X"),0,"")) ->  | AA11: =IFERROR(IF(COUNTIF(Dossard,Z11)>1,"Doublon",IF(OR(X11="A",X11="D"),"", IF(AB11<>"",AB11, IF(AND(D11<>"F",D11<>"G",D11<>"M",D11<>""),"Sexe Non Valide",IF(AND(D11="",M11<>"")," Sexe ?",IF(OR(N(V11)<0,N(V11)>Max_Note3),"Pb Note 3",IF(OR(N(W11)<0,N(W11)>Max_Note4),"Pb Note 4",IF(AND(ISNUMBER(X11),COUNT(T11:W11)<4), "Il manque "& (4-COUNT(T11:W11)) & " note(s)","")))))))), "") ->  | AH11: Tps 8 | AL11: FALSE
A12: 9 | L12: =IF(ISBLANK(G12),IF(ISERR(VALUE(F12)),RIGHT(F12,1),T(VLOOKUP(VALUE(F12),BAREME!$M$37:$O$45,3,FALSE))),IF(ISERR(VALUE(G12)), RIGHT(G12,1), T( VLOOKUP(VALUE(G12),BAREME!$M$37:$O$45,3,FALSE)))) ->  | M12: =IF(COUNT(H12:J12)=Nb_Courses,SUM(INT(H12:J12),INT(SUM(H12:J12-INT(H12:J12))/0.6),MOD(SUM(H12:J12-INT(H12:J12)),0.6)),"") ->  | T12: =IF(AND(ISNUMBER(M12),D12<>"",F12<>""),VLOOKUP(M12,IF(D12="F",Bareme_F,Bareme_G),Decal),IF(OR(H12="X",I12="X",J12="X"),0,"")) ->  | AA12: =IFERROR(IF(COUNTIF(Dossard,Z12)>1,"Doublon",IF(OR(X12="A",X12="D"),"", IF(AB12<>"",AB12, IF(AND(D12<>"F",D12<>"G",D12<>"M",D12<>""),"Sexe Non Valide",IF(AND(D12="",M12<>"")," Sexe ?",IF(OR(N(V12)<0,N(V12)>Max_Note3),"Pb Note 3",IF(OR(N(W12)<0,N(W12)>Max_Note4),"Pb Note 4",IF(AND(ISNUMBER(X12),COUNT(T12:W12)<4), "Il manque "& (4-COUNT(T12:W12)) & " note(s)","")))))))), "") ->  | AH12: Tps 9 | AL12: FALSE
A13: 10 | L13: =IF(ISBLANK(G13),IF(ISERR(VALUE(F13)),RIGHT(F13,1),T(VLOOKUP(VALUE(F13),BAREME!$M$37:$O$45,3,FALSE))),IF(ISERR(VALUE(G13)), RIGHT(G13,1), T( VLOOKUP(VALUE(G13),BAREME!$M$37:$O$45,3,FALSE)))) ->  | M13: =IF(COUNT(H13:J13)=Nb_Courses,SUM(INT(H13:J13),INT(SUM(H13:J13-INT(H13:J13))/0.6),MOD(SUM(H13:J13-INT(H13:J13)),0.6)),"") ->  | T13: =IF(AND(ISNUMBER(M13),D13<>"",F13<>""),VLOOKUP(M13,IF(D13="F",Bareme_F,Bareme_G),Decal),IF(OR(H13="X",I13="X",J13="X"),0,"")) ->  | AA13: =IFERROR(IF(COUNTIF(Dossard,Z13)>1,"Doublon",IF(OR(X13="A",X13="D"),"", IF(AB13<>"",AB13, IF(AND(D13<>"F",D13<>"G",D13<>"M",D13<>""),"Sexe Non Valide",IF(AND(D13="",M13<>"")," Sexe ?",IF(OR(N(V13)<0,N(V13)>Max_Note3),"Pb Note 3",IF(OR(N(W13)<0,N(W13)>Max_Note4),"Pb Note 4",IF(AND(ISNUMBER(X13),COUNT(T13:W13)<4), "Il manque "& (4-COUNT(T13:W13)) & " note(s)","")))))))), "") ->  | AH13: Tps 10 | AL13: FALSE
A14: 11 | L14: =IF(ISBLANK(G14),IF(ISERR(VALUE(F14)),RIGHT(F14,1),T(VLOOKUP(VALUE(F14),BAREME!$M$37:$O$45,3,FALSE))),IF(ISERR(VALUE(G14)), RIGHT(G14,1), T( VLOOKUP(VALUE(G14),BAREME!$M$37:$O$45,3,FALSE)))) ->  | M14: =IF(COUNT(H14:J14)=Nb_Courses,SUM(INT(H14:J14),INT(SUM(H14:J14-INT(H14:J14))/0.6),MOD(SUM(H14:J14-INT(H14:J14)),0.6)),"") ->  | T14: =IF(AND(ISNUMBER(M14),D14<>"",F14<>""),VLOOKUP(M14,IF(D14="F",Bareme_F,Bareme_G),Decal),IF(OR(H14="X",I14="X",J14="X"),0,"")) ->  | AA14: =IFERROR(IF(COUNTIF(Dossard,Z14)>1,"Doublon",IF(OR(X14="A",X14="D"),"", IF(AB14<>"",AB14, IF(AND(D14<>"F",D14<>"G",D14<>"M",D14<>""),"Sexe Non Valide",IF(AND(D14="",M14<>"")," Sexe ?",IF(OR(N(V14)<0,N(V14)>Max_Note3),"Pb Note 3",IF(OR(N(W14)<0,N(W14)>Max_Note4),"Pb Note 4",IF(AND(ISNUMBER(X14),COUNT(T14:W14)<4), "Il manque "& (4-COUNT(T14:W14)) & " note(s)","")))))))), "") ->  | AH14: Tps 11 | AL14: FALSE
A15: 12 | L15: =IF(ISBLANK(G15),IF(ISERR(VALUE(F15)),RIGHT(F15,1),T(VLOOKUP(VALUE(F15),BAREME!$M$37:$O$45,3,FALSE))),IF(ISERR(VALUE(G15)), RIGHT(G15,1), T( VLOOKUP(VALUE(G15),BAREME!$M$37:$O$45,3,FALSE)))) ->  | M15: =IF(COUNT(H15:J15)=Nb_Courses,SUM(INT(H15:J15),INT(SUM(H15:J15-INT(H15:J15))/0.6),MOD(SUM(H15:J15-INT(H15:J15)),0.6)),"") ->  | T15: =IF(AND(ISNUMBER(M15),D15<>"",F15<>""),VLOOKUP(M15,IF(D15="F",Bareme_F,Bareme_G),Decal),IF(OR(H15="X",I15="X",J15="X"),0,"")) ->  | AA15: =IFERROR(IF(COUNTIF(Dossard,Z15)>1,"Doublon",IF(OR(X15="A",X15="D"),"", IF(AB15<>"",AB15, IF(AND(D15<>"F",D15<>"G",D15<>"M",D15<>""),"Sexe Non Valide",IF(AND(D15="",M15<>"")," Sexe ?",IF(OR(N(V15)<0,N(V15)>Max_Note3),"Pb Note 3",IF(OR(N(W15)<0,N(W15)>Max_Note4),"Pb Note 4",IF(AND(ISNUMBER(X15),COUNT(T15:W15)<4), "Il manque "& (4-COUNT(T15:W15)) & " note(s)","")))))))), "") ->  | AH15: Tps 12 | AL15: FALSE
A16: 13 | L16: =IF(ISBLANK(G16),IF(ISERR(VALUE(F16)),RIGHT(F16,1),T(VLOOKUP(VALUE(F16),BAREME!$M$37:$O$45,3,FALSE))),IF(ISERR(VALUE(G16)), RIGHT(G16,1), T( VLOOKUP(VALUE(G16),BAREME!$M$37:$O$45,3,FALSE)))) ->  | M16: =IF(COUNT(H16:J16)=Nb_Courses,SUM(INT(H16:J16),INT(SUM(H16:J16-INT(H16:J16))/0.6),MOD(SUM(H16:J16-INT(H16:J16)),0.6)),"") ->  | T16: =IF(AND(ISNUMBER(M16),D16<>"",F16<>""),VLOOKUP(M16,IF(D16="F",Bareme_F,Bareme_G),Decal),IF(OR(H16="X",I16="X",J16="X"),0,"")) ->  | AA16: =IFERROR(IF(COUNTIF(Dossard,Z16)>1,"Doublon",IF(OR(X16="A",X16="D"),"", IF(AB16<>"",AB16, IF(AND(D16<>"F",D16<>"G",D16<>"M",D16<>""),"Sexe Non Valide",IF(AND(D16="",M16<>"")," Sexe ?",IF(OR(N(V16)<0,N(V16)>Max_Note3),"Pb Note 3",IF(OR(N(W16)<0,N(W16)>Max_Note4),"Pb Note 4",IF(AND(ISNUMBER(X16),COUNT(T16:W16)<4), "Il manque "& (4-COUNT(T16:W16)) & " note(s)","")))))))), "") ->  | AH16: Tps 13 | AL16: FALSE
A17: 14 | L17: =IF(ISBLANK(G17),IF(ISERR(VALUE(F17)),RIGHT(F17,1),T(VLOOKUP(VALUE(F17),BAREME!$M$37:$O$45,3,FALSE))),IF(ISERR(VALUE(G17)), RIGHT(G17,1), T( VLOOKUP(VALUE(G17),BAREME!$M$37:$O$45,3,FALSE)))) ->  | M17: =IF(COUNT(H17:J17)=Nb_Courses,SUM(INT(H17:J17),INT(SUM(H17:J17-INT(H17:J17))/0.6),MOD(SUM(H17:J17-INT(H17:J17)),0.6)),"") ->  | T17: =IF(AND(ISNUMBER(M17),D17<>"",F17<>""),VLOOKUP(M17,IF(D17="F",Bareme_F,Bareme_G),Decal),IF(OR(H17="X",I17="X",J17="X"),0,"")) ->  | AA17: =IFERROR(IF(COUNTIF(Dossard,Z17)>1,"Doublon",IF(OR(X17="A",X17="D"),"", IF(AB17<>"",AB17, IF(AND(D17<>"F",D17<>"G",D17<>"M",D17<>""),"Sexe Non Valide",IF(AND(D17="",M17<>"")," Sexe ?",IF(OR(N(V17)<0,N(V17)>Max_Note3),"Pb Note 3",IF(OR(N(W17)<0,N(W17)>Max_Note4),"Pb Note 4",IF(AND(ISNUMBER(X17),COUNT(T17:W17)<4), "Il manque "& (4-COUNT(T17:W17)) & " note(s)","")))))))), "") ->  | AH17: Tps 14 | AL17: FALSE
A18: 15 | L18: =IF(ISBLANK(G18),IF(ISERR(VALUE(F18)),RIGHT(F18,1),T(VLOOKUP(VALUE(F18),BAREME!$M$37:$O$45,3,FALSE))),IF(ISERR(VALUE(G18)), RIGHT(G18,1), T( VLOOKUP(VALUE(G18),BAREME!$M$37:$O$45,3,FALSE)))) ->  | M18: =IF(COUNT(H18:J18)=Nb_Courses,SUM(INT(H18:J18),INT(SUM(H18:J18-INT(H18:J18))/0.6),MOD(SUM(H18:J18-INT(H18:J18)),0.6)),"") ->  | N18: =IF(ISNUMBER(M18), (Dist_Tot/(INT(M18)*0.6+(M18-INT(M18))))*0.0036,"") ->  | T18: =IF(AND(ISNUMBER(M18),D18<>"",F18<>""),VLOOKUP(M18,IF(D18="F",Bareme_F,Bareme_G),Decal),IF(OR(H18="X",I18="X",J18="X"),0,"")) ->  | AA18: =IFERROR(IF(COUNTIF(Dossard,Z18)>1,"Doublon",IF(OR(X18="A",X18="D"),"", IF(AB18<>"",AB18, IF(AND(D18<>"F",D18<>"G",D18<>"M",D18<>""),"Sexe Non Valide",IF(AND(D18="",M18<>"")," Sexe ?",IF(OR(N(V18)<0,N(V18)>Max_Note3),"Pb Note 3",IF(OR(N(W18)<0,N(W18)>Max_Note4),"Pb Note 4",IF(AND(ISNUMBER(X18),COUNT(T18:W18)<4), "Il manque "& (4-COUNT(T18:W18)) & " note(s)","")))))))), "") ->  | AH18: Tps 15 | AL18: FALSE
A19: 16 | L19: =IF(ISBLANK(G19),IF(ISERR(VALUE(F19)),RIGHT(F19,1),T(VLOOKUP(VALUE(F19),BAREME!$M$37:$O$45,3,FALSE))),IF(ISERR(VALUE(G19)), RIGHT(G19,1), T( VLOOKUP(VALUE(G19),BAREME!$M$37:$O$45,3,FALSE)))) ->  | M19: =IF(COUNT(H19:J19)=Nb_Courses,SUM(INT(H19:J19),INT(SUM(H19:J19-INT(H19:J19))/0.6),MOD(SUM(H19:J19-INT(H19:J19)),0.6)),"") ->  | T19: =IF(AND(ISNUMBER(M19),D19<>"",F19<>""),VLOOKUP(M19,IF(D19="F",Bareme_F,Bareme_G),Decal),IF(OR(H19="X",I19="X",J19="X"),0,"")) ->  | AA19: =IFERROR(IF(COUNTIF(Dossard,Z19)>1,"Doublon",IF(OR(X19="A",X19="D"),"", IF(AB19<>"",AB19, IF(AND(D19<>"F",D19<>"G",D19<>"M",D19<>""),"Sexe Non Valide",IF(AND(D19="",M19<>"")," Sexe ?",IF(OR(N(V19)<0,N(V19)>Max_Note3),"Pb Note 3",IF(OR(N(W19)<0,N(W19)>Max_Note4),"Pb Note 4",IF(AND(ISNUMBER(X19),COUNT(T19:W19)<4), "Il manque "& (4-COUNT(T19:W19)) & " note(s)","")))))))), "") ->  | AH19: Tps 16 | AL19: FALSE
A20: 17 | L20: =IF(ISBLANK(G20),IF(ISERR(VALUE(F20)),RIGHT(F20,1),T(VLOOKUP(VALUE(F20),BAREME!$M$37:$O$45,3,FALSE))),IF(ISERR(VALUE(G20)), RIGHT(G20,1), T( VLOOKUP(VALUE(G20),BAREME!$M$37:$O$45,3,FALSE)))) ->  | M20: =IF(COUNT(H20:J20)=Nb_Courses,SUM(INT(H20:J20),INT(SUM(H20:J20-INT(H20:J20))/0.6),MOD(SUM(H20:J20-INT(H20:J20)),0.6)),"") ->  | T20: =IF(AND(ISNUMBER(M20),D20<>"",F20<>""),VLOOKUP(M20,IF(D20="F",Bareme_F,Bareme_G),Decal),IF(OR(H20="X",I20="X",J20="X"),0,"")) ->  | AA20: =IFERROR(IF(COUNTIF(Dossard,Z20)>1,"Doublon",IF(OR(X20="A",X20="D"),"", IF(AB20<>"",AB20, IF(AND(D20<>"F",D20<>"G",D20<>"M",D20<>""),"Sexe Non Valide",IF(AND(D20="",M20<>"")," Sexe ?",IF(OR(N(V20)<0,N(V20)>Max_Note3),"Pb Note 3",IF(OR(N(W20)<0,N(W20)>Max_Note4),"Pb Note 4",IF(AND(ISNUMBER(X20),COUNT(T20:W20)<4), "Il manque "& (4-COUNT(T20:W20)) & " note(s)","")))))))), "") ->  | AH20: Tps 17 | AL20: FALSE | AM20: =IF(AL20," DOSSARD NON ATTRIBUE",IF(COUNTIF(Dossard_Arrivée,Dossard_Arrivée)>1,"Doublon",IF(AND(Dossard_Arrivée<>"",Arrivee=""),"DOSSARD SANS TEMPS",IF(AND(Dossard_Arrivée="",Arrivee<>""),"TEMPS SANS DOSSARD","")))) -> 
A21: 18 | L21: =IF(ISBLANK(G21),IF(ISERR(VALUE(F21)),RIGHT(F21,1),T(VLOOKUP(VALUE(F21),BAREME!$M$37:$O$45,3,FALSE))),IF(ISERR(VALUE(G21)), RIGHT(G21,1), T( VLOOKUP(VALUE(G21),BAREME!$M$37:$O$45,3,FALSE)))) ->  | M21: =IF(COUNT(H21:J21)=Nb_Courses,SUM(INT(H21:J21),INT(SUM(H21:J21-INT(H21:J21))/0.6),MOD(SUM(H21:J21-INT(H21:J21)),0.6)),"") ->  | T21: =IF(AND(ISNUMBER(M21),D21<>"",F21<>""),VLOOKUP(M21,IF(D21="F",Bareme_F,Bareme_G),Decal),IF(OR(H21="X",I21="X",J21="X"),0,"")) ->  | AA21: =IFERROR(IF(COUNTIF(Dossard,Z21)>1,"Doublon",IF(OR(X21="A",X21="D"),"", IF(AB21<>"",AB21, IF(AND(D21<>"F",D21<>"G",D21<>"M",D21<>""),"Sexe Non Valide",IF(AND(D21="",M21<>"")," Sexe ?",IF(OR(N(V21)<0,N(V21)>Max_Note3),"Pb Note 3",IF(OR(N(W21)<0,N(W21)>Max_Note4),"Pb Note 4",IF(AND(ISNUMBER(X21),COUNT(T21:W21)<4), "Il manque "& (4-COUNT(T21:W21)) & " note(s)","")))))))), "") ->  | AH21: Tps 18 | AL21: FALSE
A22: 19 | L22: =IF(ISBLANK(G22),IF(ISERR(VALUE(F22)),RIGHT(F22,1),T(VLOOKUP(VALUE(F22),BAREME!$M$37:$O$45,3,FALSE))),IF(ISERR(VALUE(G22)), RIGHT(G22,1), T( VLOOKUP(VALUE(G22),BAREME!$M$37:$O$45,3,FALSE)))) ->  | M22: =IF(COUNT(H22:J22)=Nb_Courses,SUM(INT(H22:J22),INT(SUM(H22:J22-INT(H22:J22))/0.6),MOD(SUM(H22:J22-INT(H22:J22)),0.6)),"") ->  | T22: =IF(AND(ISNUMBER(M22),D22<>"",F22<>""),VLOOKUP(M22,IF(D22="F",Bareme_F,Bareme_G),Decal),IF(OR(H22="X",I22="X",J22="X"),0,"")) ->  | AA22: =IFERROR(IF(COUNTIF(Dossard,Z22)>1,"Doublon",IF(OR(X22="A",X22="D"),"", IF(AB22<>"",AB22, IF(AND(D22<>"F",D22<>"G",D22<>"M",D22<>""),"Sexe Non Valide",IF(AND(D22="",M22<>"")," Sexe ?",IF(OR(N(V22)<0,N(V22)>Max_Note3),"Pb Note 3",IF(OR(N(W22)<0,N(W22)>Max_Note4),"Pb Note 4",IF(AND(ISNUMBER(X22),COUNT(T22:W22)<4), "Il manque "& (4-COUNT(T22:W22)) & " note(s)","")))))))), "") ->  | AH22: Tps 19 | AL22: FALSE
A23: 20 | L23: =IF(ISBLANK(G23),IF(ISERR(VALUE(F23)),RIGHT(F23,1),T(VLOOKUP(VALUE(F23),BAREME!$M$37:$O$45,3,FALSE))),IF(ISERR(VALUE(G23)), RIGHT(G23,1), T( VLOOKUP(VALUE(G23),BAREME!$M$37:$O$45,3,FALSE)))) ->  | M23: =IF(COUNT(H23:J23)=Nb_Courses,SUM(INT(H23:J23),INT(SUM(H23:J23-INT(H23:J23))/0.6),MOD(SUM(H23:J23-INT(H23:J23)),0.6)),"") ->  | T23: =IF(AND(ISNUMBER(M23),D23<>"",F23<>""),VLOOKUP(M23,IF(D23="F",Bareme_F,Bareme_G),Decal),IF(OR(H23="X",I23="X",J23="X"),0,"")) ->  | AA23: =IFERROR(IF(COUNTIF(Dossard,Z23)>1,"Doublon",IF(OR(X23="A",X23="D"),"", IF(AB23<>"",AB23, IF(AND(D23<>"F",D23<>"G",D23<>"M",D23<>""),"Sexe Non Valide",IF(AND(D23="",M23<>"")," Sexe ?",IF(OR(N(V23)<0,N(V23)>Max_Note3),"Pb Note 3",IF(OR(N(W23)<0,N(W23)>Max_Note4),"Pb Note 4",IF(AND(ISNUMBER(X23),COUNT(T23:W23)<4), "Il manque "& (4-COUNT(T23:W23)) & " note(s)","")))))))), "") ->  | AH23: Tps 20 | AL23: FALSE
A24: 21 | L24: =IF(ISBLANK(G24),IF(ISERR(VALUE(F24)),RIGHT(F24,1),T(VLOOKUP(VALUE(F24),BAREME!$M$37:$O$45,3,FALSE))),IF(ISERR(VALUE(G24)), RIGHT(G24,1), T( VLOOKUP(VALUE(G24),BAREME!$M$37:$O$45,3,FALSE)))) ->  | M24: =IF(COUNT(H24:J24)=Nb_Courses,SUM(INT(H24:J24),INT(SUM(H24:J24-INT(H24:J24))/0.6),MOD(SUM(H24:J24-INT(H24:J24)),0.6)),"") ->  | T24: =IF(AND(ISNUMBER(M24),D24<>"",F24<>""),VLOOKUP(M24,IF(D24="F",Bareme_F,Bareme_G),Decal),IF(OR(H24="X",I24="X",J24="X"),0,"")) ->  | AA24: =IFERROR(IF(COUNTIF(Dossard,Z24)>1,"Doublon",IF(OR(X24="A",X24="D"),"", IF(AB24<>"",AB24, IF(AND(D24<>"F",D24<>"G",D24<>"M",D24<>""),"Sexe Non Valide",IF(AND(D24="",M24<>"")," Sexe ?",IF(OR(N(V24)<0,N(V24)>Max_Note3),"Pb Note 3",IF(OR(N(W24)<0,N(W24)>Max_Note4),"Pb Note 4",IF(AND(ISNUMBER(X24),COUNT(T24:W24)<4), "Il manque "& (4-COUNT(T24:W24)) & " note(s)","")))))))), "") ->  | AH24: Tps 21 | AL24: FALSE
A25: 22 | L25: =IF(ISBLANK(G25),IF(ISERR(VALUE(F25)),RIGHT(F25,1),T(VLOOKUP(VALUE(F25),BAREME!$M$37:$O$45,3,FALSE))),IF(ISERR(VALUE(G25)), RIGHT(G25,1), T( VLOOKUP(VALUE(G25),BAREME!$M$37:$O$45,3,FALSE)))) ->  | M25: =IF(COUNT(H25:J25)=Nb_Courses,SUM(INT(H25:J25),INT(SUM(H25:J25-INT(H25:J25))/0.6),MOD(SUM(H25:J25-INT(H25:J25)),0.6)),"") ->  | T25: =IF(AND(ISNUMBER(M25),D25<>"",F25<>""),VLOOKUP(M25,IF(D25="F",Bareme_F,Bareme_G),Decal),IF(OR(H25="X",I25="X",J25="X"),0,"")) ->  | AA25: =IFERROR(IF(COUNTIF(Dossard,Z25)>1,"Doublon",IF(OR(X25="A",X25="D"),"", IF(AB25<>"",AB25, IF(AND(D25<>"F",D25<>"G",D25<>"M",D25<>""),"Sexe Non Valide",IF(AND(D25="",M25<>"")," Sexe ?",IF(OR(N(V25)<0,N(V25)>Max_Note3),"Pb Note 3",IF(OR(N(W25)<0,N(W25)>Max_Note4),"Pb Note 4",IF(AND(ISNUMBER(X25),COUNT(T25:W25)<4), "Il manque "& (4-COUNT(T25:W25)) & " note(s)","")))))))), "") ->  | AH25: Tps 22 | AL25: FALSE
A26: 23 | L26: =IF(ISBLANK(G26),IF(ISERR(VALUE(F26)),RIGHT(F26,1),T(VLOOKUP(VALUE(F26),BAREME!$M$37:$O$45,3,FALSE))),IF(ISERR(VALUE(G26)), RIGHT(G26,1), T( VLOOKUP(VALUE(G26),BAREME!$M$37:$O$45,3,FALSE)))) ->  | M26: =IF(COUNT(H26:J26)=Nb_Courses,SUM(INT(H26:J26),INT(SUM(H26:J26-INT(H26:J26))/0.6),MOD(SUM(H26:J26-INT(H26:J26)),0.6)),"") ->  | T26: =IF(AND(ISNUMBER(M26),D26<>"",F26<>""),VLOOKUP(M26,IF(D26="F",Bareme_F,Bareme_G),Decal),IF(OR(H26="X",I26="X",J26="X"),0,"")) ->  | AA26: =IFERROR(IF(COUNTIF(Dossard,Z26)>1,"Doublon",IF(OR(X26="A",X26="D"),"", IF(AB26<>"",AB26, IF(AND(D26<>"F",D26<>"G",D26<>"M",D26<>""),"Sexe Non Valide",IF(AND(D26="",M26<>"")," Sexe ?",IF(OR(N(V26)<0,N(V26)>Max_Note3),"Pb Note 3",IF(OR(N(W26)<0,N(W26)>Max_Note4),"Pb Note 4",IF(AND(ISNUMBER(X26),COUNT(T26:W26)<4), "Il manque "& (4-COUNT(T26:W26)) & " note(s)","")))))))), "") ->  | AH26: Tps 23 | AL26: FALSE
A27: 24 | L27: =IF(ISBLANK(G27),IF(ISERR(VALUE(F27)),RIGHT(F27,1),T(VLOOKUP(VALUE(F27),BAREME!$M$37:$O$45,3,FALSE))),IF(ISERR(VALUE(G27)), RIGHT(G27,1), T( VLOOKUP(VALUE(G27),BAREME!$M$37:$O$45,3,FALSE)))) ->  | M27: =IF(COUNT(H27:J27)=Nb_Courses,SUM(INT(H27:J27),INT(SUM(H27:J27-INT(H27:J27))/0.6),MOD(SUM(H27:J27-INT(H27:J27)),0.6)),"") ->  | T27: =IF(AND(ISNUMBER(M27),D27<>"",F27<>""),VLOOKUP(M27,IF(D27="F",Bareme_F,Bareme_G),Decal),IF(OR(H27="X",I27="X",J27="X"),0,"")) ->  | AA27: =IFERROR(IF(COUNTIF(Dossard,Z27)>1,"Doublon",IF(OR(X27="A",X27="D"),"", IF(AB27<>"",AB27, IF(AND(D27<>"F",D27<>"G",D27<>"M",D27<>""),"Sexe Non Valide",IF(AND(D27="",M27<>"")," Sexe ?",IF(OR(N(V27)<0,N(V27)>Max_Note3),"Pb Note 3",IF(OR(N(W27)<0,N(W27)>Max_Note4),"Pb Note 4",IF(AND(ISNUMBER(X27),COUNT(T27:W27)<4), "Il manque "& (4-COUNT(T27:W27)) & " note(s)","")))))))), "") ->  | AH27: Tps 24 | AL27: FALSE
A28: 25 | L28: =IF(ISBLANK(G28),IF(ISERR(VALUE(F28)),RIGHT(F28,1),T(VLOOKUP(VALUE(F28),BAREME!$M$37:$O$45,3,FALSE))),IF(ISERR(VALUE(G28)), RIGHT(G28,1), T( VLOOKUP(VALUE(G28),BAREME!$M$37:$O$45,3,FALSE)))) ->  | M28: =IF(COUNT(H28:J28)=Nb_Courses,SUM(INT(H28:J28),INT(SUM(H28:J28-INT(H28:J28))/0.6),MOD(SUM(H28:J28-INT(H28:J28)),0.6)),"") ->  | T28: =IF(AND(ISNUMBER(M28),D28<>"",F28<>""),VLOOKUP(M28,IF(D28="F",Bareme_F,Bareme_G),Decal),IF(OR(H28="X",I28="X",J28="X"),0,"")) ->  | AA28: =IFERROR(IF(COUNTIF(Dossard,Z28)>1,"Doublon",IF(OR(X28="A",X28="D"),"", IF(AB28<>"",AB28, IF(AND(D28<>"F",D28<>"G",D28<>"M",D28<>""),"Sexe Non Valide",IF(AND(D28="",M28<>"")," Sexe ?",IF(OR(N(V28)<0,N(V28)>Max_Note3),"Pb Note 3",IF(OR(N(W28)<0,N(W28)>Max_Note4),"Pb Note 4",IF(AND(ISNUMBER(X28),COUNT(T28:W28)<4), "Il manque "& (4-COUNT(T28:W28)) & " note(s)","")))))))), "") ->  | AH28: Tps 25 | AL28: FALSE
A29: 26 | L29: =IF(ISBLANK(G29),IF(ISERR(VALUE(F29)),RIGHT(F29,1),T(VLOOKUP(VALUE(F29),BAREME!$M$37:$O$45,3,FALSE))),IF(ISERR(VALUE(G29)), RIGHT(G29,1), T( VLOOKUP(VALUE(G29),BAREME!$M$37:$O$45,3,FALSE)))) ->  | M29: =IF(COUNT(H29:J29)=Nb_Courses,SUM(INT(H29:J29),INT(SUM(H29:J29-INT(H29:J29))/0.6),MOD(SUM(H29:J29-INT(H29:J29)),0.6)),"") ->  | T29: =IF(AND(ISNUMBER(M29),D29<>"",F29<>""),VLOOKUP(M29,IF(D29="F",Bareme_F,Bareme_G),Decal),IF(OR(H29="X",I29="X",J29="X"),0,"")) ->  | AA29: =IFERROR(IF(COUNTIF(Dossard,Z29)>1,"Doublon",IF(OR(X29="A",X29="D"),"", IF(AB29<>"",AB29, IF(AND(D29<>"F",D29<>"G",D29<>"M",D29<>""),"Sexe Non Valide",IF(AND(D29="",M29<>"")," Sexe ?",IF(OR(N(V29)<0,N(V29)>Max_Note3),"Pb Note 3",IF(OR(N(W29)<0,N(W29)>Max_Note4),"Pb Note 4",IF(AND(ISNUMBER(X29),COUNT(T29:W29)<4), "Il manque "& (4-COUNT(T29:W29)) & " note(s)","")))))))), "") ->  | AH29: Tps 26 | AL29: FALSE
A30: 27 | L30: =IF(ISBLANK(G30),IF(ISERR(VALUE(F30)),RIGHT(F30,1),T(VLOOKUP(VALUE(F30),BAREME!$M$37:$O$45,3,FALSE))),IF(ISERR(VALUE(G30)), RIGHT(G30,1), T( VLOOKUP(VALUE(G30),BAREME!$M$37:$O$45,3,FALSE)))) ->  | M30: =IF(COUNT(H30:J30)=Nb_Courses,SUM(INT(H30:J30),INT(SUM(H30:J30-INT(H30:J30))/0.6),MOD(SUM(H30:J30-INT(H30:J30)),0.6)),"") ->  | T30: =IF(AND(ISNUMBER(M30),D30<>"",F30<>""),VLOOKUP(M30,IF(D30="F",Bareme_F,Bareme_G),Decal),IF(OR(H30="X",I30="X",J30="X"),0,"")) ->  | AA30: =IFERROR(IF(COUNTIF(Dossard,Z30)>1,"Doublon",IF(OR(X30="A",X30="D"),"", IF(AB30<>"",AB30, IF(AND(D30<>"F",D30<>"G",D30<>"M",D30<>""),"Sexe Non Valide",IF(AND(D30="",M30<>"")," Sexe ?",IF(OR(N(V30)<0,N(V30)>Max_Note3),"Pb Note 3",IF(OR(N(W30)<0,N(W30)>Max_Note4),"Pb Note 4",IF(AND(ISNUMBER(X30),COUNT(T30:W30)<4), "Il manque "& (4-COUNT(T30:W30)) & " note(s)","")))))))), "") ->  | AH30: Tps 27 | AL30: FALSE
A31: 28 | L31: =IF(ISBLANK(G31),IF(ISERR(VALUE(F31)),RIGHT(F31,1),T(VLOOKUP(VALUE(F31),BAREME!$M$37:$O$45,3,FALSE))),IF(ISERR(VALUE(G31)), RIGHT(G31,1), T( VLOOKUP(VALUE(G31),BAREME!$M$37:$O$45,3,FALSE)))) ->  | M31: =IF(COUNT(H31:J31)=Nb_Courses,SUM(INT(H31:J31),INT(SUM(H31:J31-INT(H31:J31))/0.6),MOD(SUM(H31:J31-INT(H31:J31)),0.6)),"") ->  | T31: =IF(AND(ISNUMBER(M31),D31<>"",F31<>""),VLOOKUP(M31,IF(D31="F",Bareme_F,Bareme_G),Decal),IF(OR(H31="X",I31="X",J31="X"),0,"")) ->  | AA31: =IFERROR(IF(COUNTIF(Dossard,Z31)>1,"Doublon",IF(OR(X31="A",X31="D"),"", IF(AB31<>"",AB31, IF(AND(D31<>"F",D31<>"G",D31<>"M",D31<>""),"Sexe Non Valide",IF(AND(D31="",M31<>"")," Sexe ?",IF(OR(N(V31)<0,N(V31)>Max_Note3),"Pb Note 3",IF(OR(N(W31)<0,N(W31)>Max_Note4),"Pb Note 4",IF(AND(ISNUMBER(X31),COUNT(T31:W31)<4), "Il manque "& (4-COUNT(T31:W31)) & " note(s)","")))))))), "") ->  | AH31: Tps 28 | AL31: FALSE
A32: 29 | L32: =IF(ISBLANK(G32),IF(ISERR(VALUE(F32)),RIGHT(F32,1),T(VLOOKUP(VALUE(F32),BAREME!$M$37:$O$45,3,FALSE))),IF(ISERR(VALUE(G32)), RIGHT(G32,1), T( VLOOKUP(VALUE(G32),BAREME!$M$37:$O$45,3,FALSE)))) ->  | M32: =IF(COUNT(H32:J32)=Nb_Courses,SUM(INT(H32:J32),INT(SUM(H32:J32-INT(H32:J32))/0.6),MOD(SUM(H32:J32-INT(H32:J32)),0.6)),"") ->  | T32: =IF(AND(ISNUMBER(M32),D32<>"",F32<>""),VLOOKUP(M32,IF(D32="F",Bareme_F,Bareme_G),Decal),IF(OR(H32="X",I32="X",J32="X"),0,"")) ->  | AA32: =IFERROR(IF(COUNTIF(Dossard,Z32)>1,"Doublon",IF(OR(X32="A",X32="D"),"", IF(AB32<>"",AB32, IF(AND(D32<>"F",D32<>"G",D32<>"M",D32<>""),"Sexe Non Valide",IF(AND(D32="",M32<>"")," Sexe ?",IF(OR(N(V32)<0,N(V32)>Max_Note3),"Pb Note 3",IF(OR(N(W32)<0,N(W32)>Max_Note4),"Pb Note 4",IF(AND(ISNUMBER(X32),COUNT(T32:W32)<4), "Il manque "& (4-COUNT(T32:W32)) & " note(s)","")))))))), "") ->  | AH32: Tps 29 | AL32: FALSE
A33: 30 | L33: =IF(ISBLANK(G33),IF(ISERR(VALUE(F33)),RIGHT(F33,1),T(VLOOKUP(VALUE(F33),BAREME!$M$37:$O$45,3,FALSE))),IF(ISERR(VALUE(G33)), RIGHT(G33,1), T( VLOOKUP(VALUE(G33),BAREME!$M$37:$O$45,3,FALSE)))) ->  | M33: =IF(COUNT(H33:J33)=Nb_Courses,SUM(INT(H33:J33),INT(SUM(H33:J33-INT(H33:J33))/0.6),MOD(SUM(H33:J33-INT(H33:J33)),0.6)),"") ->  | T33: =IF(AND(ISNUMBER(M33),D33<>"",F33<>""),VLOOKUP(M33,IF(D33="F",Bareme_F,Bareme_G),Decal),IF(OR(H33="X",I33="X",J33="X"),0,"")) ->  | AA33: =IFERROR(IF(COUNTIF(Dossard,Z33)>1,"Doublon",IF(OR(X33="A",X33="D"),"", IF(AB33<>"",AB33, IF(AND(D33<>"F",D33<>"G",D33<>"M",D33<>""),"Sexe Non Valide",IF(AND(D33="",M33<>"")," Sexe ?",IF(OR(N(V33)<0,N(V33)>Max_Note3),"Pb Note 3",IF(OR(N(W33)<0,N(W33)>Max_Note4),"Pb Note 4",IF(AND(ISNUMBER(X33),COUNT(T33:W33)<4), "Il manque "& (4-COUNT(T33:W33)) & " note(s)","")))))))), "") ->  | AH33: Tps 30 | AL33: FALSE
A34: 31 | L34: =IF(ISBLANK(G34),IF(ISERR(VALUE(F34)),RIGHT(F34,1),T(VLOOKUP(VALUE(F34),BAREME!$M$37:$O$45,3,FALSE))),IF(ISERR(VALUE(G34)), RIGHT(G34,1), T( VLOOKUP(VALUE(G34),BAREME!$M$37:$O$45,3,FALSE)))) ->  | M34: =IF(COUNT(H34:J34)=Nb_Courses,SUM(INT(H34:J34),INT(SUM(H34:J34-INT(H34:J34))/0.6),MOD(SUM(H34:J34-INT(H34:J34)),0.6)),"") ->  | T34: =IF(AND(ISNUMBER(M34),D34<>"",F34<>""),VLOOKUP(M34,IF(D34="F",Bareme_F,Bareme_G),Decal),IF(OR(H34="X",I34="X",J34="X"),0,"")) ->  | AA34: =IFERROR(IF(COUNTIF(Dossard,Z34)>1,"Doublon",IF(OR(X34="A",X34="D"),"", IF(AB34<>"",AB34, IF(AND(D34<>"F",D34<>"G",D34<>"M",D34<>""),"Sexe Non Valide",IF(AND(D34="",M34<>"")," Sexe ?",IF(OR(N(V34)<0,N(V34)>Max_Note3),"Pb Note 3",IF(OR(N(W34)<0,N(W34)>Max_Note4),"Pb Note 4",IF(AND(ISNUMBER(X34),COUNT(T34:W34)<4), "Il manque "& (4-COUNT(T34:W34)) & " note(s)","")))))))), "") ->  | AH34: Tps 31 | AL34: FALSE
A35: 32 | L35: =IF(ISBLANK(G35),IF(ISERR(VALUE(F35)),RIGHT(F35,1),T(VLOOKUP(VALUE(F35),BAREME!$M$37:$O$45,3,FALSE))),IF(ISERR(VALUE(G35)), RIGHT(G35,1), T( VLOOKUP(VALUE(G35),BAREME!$M$37:$O$45,3,FALSE)))) ->  | M35: =IF(COUNT(H35:J35)=Nb_Courses,SUM(INT(H35:J35),INT(SUM(H35:J35-INT(H35:J35))/0.6),MOD(SUM(H35:J35-INT(H35:J35)),0.6)),"") ->  | T35: =IF(AND(ISNUMBER(M35),D35<>"",F35<>""),VLOOKUP(M35,IF(D35="F",Bareme_F,Bareme_G),Decal),IF(OR(H35="X",I35="X",J35="X"),0,"")) ->  | AA35: =IFERROR(IF(COUNTIF(Dossard,Z35)>1,"Doublon",IF(OR(X35="A",X35="D"),"", IF(AB35<>"",AB35, IF(AND(D35<>"F",D35<>"G",D35<>"M",D35<>""),"Sexe Non Valide",IF(AND(D35="",M35<>"")," Sexe ?",IF(OR(N(V35)<0,N(V35)>Max_Note3),"Pb Note 3",IF(OR(N(W35)<0,N(W35)>Max_Note4),"Pb Note 4",IF(AND(ISNUMBER(X35),COUNT(T35:W35)<4), "Il manque "& (4-COUNT(T35:W35)) & " note(s)","")))))))), "") ->  | AH35: Tps 32 | AL35: FALSE
A36: 33 | L36: =IF(ISBLANK(G36),IF(ISERR(VALUE(F36)),RIGHT(F36,1),T(VLOOKUP(VALUE(F36),BAREME!$M$37:$O$45,3,FALSE))),IF(ISERR(VALUE(G36)), RIGHT(G36,1), T( VLOOKUP(VALUE(G36),BAREME!$M$37:$O$45,3,FALSE)))) ->  | M36: =IF(COUNT(H36:J36)=Nb_Courses,SUM(INT(H36:J36),INT(SUM(H36:J36-INT(H36:J36))/0.6),MOD(SUM(H36:J36-INT(H36:J36)),0.6)),"") ->  | T36: =IF(AND(ISNUMBER(M36),D36<>"",F36<>""),VLOOKUP(M36,IF(D36="F",Bareme_F,Bareme_G),Decal),IF(OR(H36="X",I36="X",J36="X"),0,"")) ->  | AA36: =IFERROR(IF(COUNTIF(Dossard,Z36)>1,"Doublon",IF(OR(X36="A",X36="D"),"", IF(AB36<>"",AB36, IF(AND(D36<>"F",D36<>"G",D36<>"M",D36<>""),"Sexe Non Valide",IF(AND(D36="",M36<>"")," Sexe ?",IF(OR(N(V36)<0,N(V36)>Max_Note3),"Pb Note 3",IF(OR(N(W36)<0,N(W36)>Max_Note4),"Pb Note 4",IF(AND(ISNUMBER(X36),COUNT(T36:W36)<4), "Il manque "& (4-COUNT(T36:W36)) & " note(s)","")))))))), "") ->  | AH36: Tps 33 | AL36: FALSE
A37: 34 | L37: =IF(ISBLANK(G37),IF(ISERR(VALUE(F37)),RIGHT(F37,1),T(VLOOKUP(VALUE(F37),BAREME!$M$37:$O$45,3,FALSE))),IF(ISERR(VALUE(G37)), RIGHT(G37,1), T( VLOOKUP(VALUE(G37),BAREME!$M$37:$O$45,3,FALSE)))) ->  | M37: =IF(COUNT(H37:J37)=Nb_Courses,SUM(INT(H37:J37),INT(SUM(H37:J37-INT(H37:J37))/0.6),MOD(SUM(H37:J37-INT(H37:J37)),0.6)),"") ->  | T37: =IF(AND(ISNUMBER(M37),D37<>"",F37<>""),VLOOKUP(M37,IF(D37="F",Bareme_F,Bareme_G),Decal),IF(OR(H37="X",I37="X",J37="X"),0,"")) ->  | AA37: =IFERROR(IF(COUNTIF(Dossard,Z37)>1,"Doublon",IF(OR(X37="A",X37="D"),"", IF(AB37<>"",AB37, IF(AND(D37<>"F",D37<>"G",D37<>"M",D37<>""),"Sexe Non Valide",IF(AND(D37="",M37<>"")," Sexe ?",IF(OR(N(V37)<0,N(V37)>Max_Note3),"Pb Note 3",IF(OR(N(W37)<0,N(W37)>Max_Note4),"Pb Note 4",IF(AND(ISNUMBER(X37),COUNT(T37:W37)<4), "Il manque "& (4-COUNT(T37:W37)) & " note(s)","")))))))), "") ->  | AH37: Tps 34 | AL37: FALSE
A38: 35 | L38: =IF(ISBLANK(G38),IF(ISERR(VALUE(F38)),RIGHT(F38,1),T(VLOOKUP(VALUE(F38),BAREME!$M$37:$O$45,3,FALSE))),IF(ISERR(VALUE(G38)), RIGHT(G38,1), T( VLOOKUP(VALUE(G38),BAREME!$M$37:$O$45,3,FALSE)))) ->  | M38: =IF(COUNT(H38:J38)=Nb_Courses,SUM(INT(H38:J38),INT(SUM(H38:J38-INT(H38:J38))/0.6),MOD(SUM(H38:J38-INT(H38:J38)),0.6)),"") ->  | T38: =IF(AND(ISNUMBER(M38),D38<>"",F38<>""),VLOOKUP(M38,IF(D38="F",Bareme_F,Bareme_G),Decal),IF(OR(H38="X",I38="X",J38="X"),0,"")) ->  | AA38: =IFERROR(IF(COUNTIF(Dossard,Z38)>1,"Doublon",IF(OR(X38="A",X38="D"),"", IF(AB38<>"",AB38, IF(AND(D38<>"F",D38<>"G",D38<>"M",D38<>""),"Sexe Non Valide",IF(AND(D38="",M38<>"")," Sexe ?",IF(OR(N(V38)<0,N(V38)>Max_Note3),"Pb Note 3",IF(OR(N(W38)<0,N(W38)>Max_Note4),"Pb Note 4",IF(AND(ISNUMBER(X38),COUNT(T38:W38)<4), "Il manque "& (4-COUNT(T38:W38)) & " note(s)","")))))))), "") ->  | AH38: Tps 35 | AL38: FALSE
A39: 36 | L39: =IF(ISBLANK(G39),IF(ISERR(VALUE(F39)),RIGHT(F39,1),T(VLOOKUP(VALUE(F39),BAREME!$M$37:$O$45,3,FALSE))),IF(ISERR(VALUE(G39)), RIGHT(G39,1), T( VLOOKUP(VALUE(G39),BAREME!$M$37:$O$45,3,FALSE)))) ->  | M39: =IF(COUNT(H39:J39)=Nb_Courses,SUM(INT(H39:J39),INT(SUM(H39:J39-INT(H39:J39))/0.6),MOD(SUM(H39:J39-INT(H39:J39)),0.6)),"") ->  | T39: =IF(AND(ISNUMBER(M39),D39<>"",F39<>""),VLOOKUP(M39,IF(D39="F",Bareme_F,Bareme_G),Decal),IF(OR(H39="X",I39="X",J39="X"),0,"")) ->  | AA39: =IFERROR(IF(COUNTIF(Dossard,Z39)>1,"Doublon",IF(OR(X39="A",X39="D"),"", IF(AB39<>"",AB39, IF(AND(D39<>"F",D39<>"G",D39<>"M",D39<>""),"Sexe Non Valide",IF(AND(D39="",M39<>"")," Sexe ?",IF(OR(N(V39)<0,N(V39)>Max_Note3),"Pb Note 3",IF(OR(N(W39)<0,N(W39)>Max_Note4),"Pb Note 4",IF(AND(ISNUMBER(X39),COUNT(T39:W39)<4), "Il manque "& (4-COUNT(T39:W39)) & " note(s)","")))))))), "") ->  | AH39: Tps 36 | AL39: FALSE

Sheet Histo
D2: HISTORIQUE | AI2: 0.0003009259259
A6: V3,0 | B6: 2021-05-10 | C6: Version de Diffusion
C7: Mise à jour de la page AIDE
C8: Suppression du Multi-classes
C9: Bouton Classe dans Bareme avec mise à jour macro pour changement automatique du nom de la plaque en fonction de la classe
C10: Matrice nommée dans rechercheV pour note AFLP 3 & 4
C11: Correction erreur ref macro pour les fleches haut bas du bloc Degré AFLP1
C12: Correction del formule nommée Rap_AFLP3_4 pour tenir compte du numero de ligne de la valeur recherchée en utilisant index et ligne-3 pour decalage ligne physique et tableau
A14: V2.11 | B14: 2021-05-09 | C14: Dans Chronometrage = Transfere_Resultats calcul de la derniere colonne de perf en fonction de la variable nommée Nb_Courses et ajustement du MESSAGE d'ERREUR
C15: Suppression des formules et masquage des colonnes inutiles sans suppression pour éviter erreur de ref dans VBA
C16: Ajustement des contôles d'erreur et messages d'erreur
C17: Afficher masquer les colonnes de Perf en fonction de Nb_Courses
C18: Correction formule Note4
C19: VBA gestion des macros d'effacement
A21: V2.10 | B21: 2021-05-09 | C21: Mise en page tableau Classe suppression des anciennes colonnes profile de course
C22: Changement du nom de la macro de choix du degré d'AFLP1 car conflit avec le nom definit de la liste de choix (Nom identique)
C23: Gestion des differents worsheetChange dans "Bareme"
C24: Restriction de validation de données pour le rapport entre AFLP 3&4 il n'y a plus de valeur numerique simple
A26: V2.9 | B26: 2021-05-08 | C26: Mise en page de l onglet Bareme
C27: Allongement de la longueur du tableau Note AFLP2 pour personnalisation
A29: V2.8 | B29: 2021-04-25 | C29: Possibilité d Evaluation préalable par degré AFLP3&4 Option à cocher dans Bareme
C30: => mise au format texte des colonnes Degré AFLP3 & Degré ALP 4 pour éviter les erreurs lors de la saisie des valeurs simples 1/2/3/4 et rechercheV valeur EXACTE pour éviter problème d'ordre non croissant 1-/1/1+
C31: Dans Bareme bouton " Modifier" et mise à jour automatique de la date du Bareme
A33: V2.7 | B33: 2021-03-09 | C33: NOUVEAU CAP
C34: Dans bareme : Dist_Tot=somme des 3 courses et Nb_Courses de 1 à 3
C35: Cacul de la Vitesse en fonction du Nb_Courses et Dist_Tot
C36: Titre course = course 1 /2 /3
C37: Barre "Grp Proje"t devient "Degre AFLP1" => Sub projet devient Degré_AFLP1 & sub Affich_Masq_Projet = Affich_Masq_Degre_AFLP1
C38: Note CAP = somme de 4 notes
C39: Colonne F = Degré AFLP 1
C40: Note AFLP1 defini dans le bareme tableau Nomagramme en fonction du temps cumulé et du degré AFLP1
C41: Création Bareme2 Bareme4 Bareme6 pour les notes 3 & 4
C42: Liste notes AFLP2
C43: TEMPS MAX = variable definie dans BAREME pour la formule de validation de donnée PERF
A45: V2.6a | B45: 2019-06-19 | C45: Modification de la Validation de donnée de Projet régulé pour interdire saisie si pas de projet initial ( Oublie / Versions 2.6 BAC et BAC PRO)
A47: V2.6 | B47: 2018-12-17 | C47: Ajout d'un Visuel permanent des projets
C48: Supression des Boutons activeX et deplacement des boutons de l'interface Chrono
C49: NOTE Prepa_Recup => Nom dans BAREME => Validation de données par Formule car n'accepte pas les Nom dans Valeurs Min / Max
C50: Mise à jour Alerte depuis Bac pro V2.6 avec Integration Prepa_Recup comme Constante modifiable dans BAREME
C51: Ajout d'un Zoom automatique Desactivable dans les REGLAGES
C52: MAJ de la page AIDE
C53: Code de protection pour diffusion en Evaluation Certificative
A55: V2.5 | B55: 2018-11-29 | C55: Version de diffusion = Code transféré dans les version BAC & BAC Pro
C56: Version testée et fonctionnelle sous MAC & Excel 2016 dans les modes 3- 4 -5
C57: Message dAlerte si Mode Chrono 1 et 2 incompatible avec MAC => Sortie de la boucle sans Bug
C58: Nettoyage du code et Blocage des évenements à l'initialisation Mise en rem localisation Bouton activex TOP pb avec MAC
C59: Mode chrono 5 mode dans BAREME
C60: MAJ page menu et AIDE cf 2.4 I
C61: Validation des données sur 500m pour interdire decimale >59 en cas de saisie mauelle
C62: Mise forme conditionnelle pour signaler decimale >59 si integration des temps par copier coller qui passe outre la validation de données
C63: Simplification Formule Ecart 2 (Q) suite au projet en une seule cellule => comparaison avec K & L
C64: Reprise de la formule Note projet pour accepter résultat partiel en cas d'abandon Si que course 1 la note apparait mais pas si les 3 courses sont faites sans remplir la case projet C1=>Alerte
C65: Reprise de la formule du decompte "Projets Reussits" la note s'affiche à partir d'un seul projet comptabilisé (C1 C2 & Abandon)
C66: Ecart Pojet C1 formule modifiée pour differencier Pas de course = case vide "" et Course realisée sans déclarer projet => "?"
C67: EVALUATION PARTIELLLE la note CAP apparait mais sur fond rouge avec en alerte le nombre de notes manquantes ou Projet non défini
C68: Alerte => nouveau message pour signaler le nombre de notes Manquantes
C69: Module Projet MAJ dans l'Ordre du Référentiel BAC
C70: Ajout colonne Commentaires et Bouton "Effacement commmentaires"
A72: V2.4I | B72: 2018-11-24 | C72: Exclusion de la souris en mode clavier
C73: Mise à jour de l'AIDE
C74: Mise à jour de la page MENU pb de protection des cellule activeés par boutons
A76: V2.4 H | B76: 2018-11-17 | C76: Note Echauffement paramettrable dans Bareme => correction erreur CAP / BAC Pro 3pts au lieu de 2
C77: Modification de la variable temps Affiche de single en double car erreur d'arrondi dans le tableau
C78: Dedoublement desModes Win Et Compatibles pour gestion de la Souris = Chrono à distance par clic Droit En masquant les boutons pour éviter la perte de clic
C79: 5 eme Mode Chrono compatible avec gros bouton 1/2 ecran pour Clic Gauche souris = Chrono à distance
C80: Attribution d'un Nom Explicite pour tous les boutons pour traitemernt des fonctions en boucle avec variable
C81: Creation Module Saisie Projet par Boutons
C82: Plein ecran dans toutes les modes chrono
C83: bloquer le clic droit en mode Standard pendant le chronometrage car Pb sur 1er clic focus sur le cadre de la cellule => pas de reaction 2eme Clic
A85: V2.4g | B85: 2018-11-08 | C85: Retour des Boutons Standards plus reactifs en mode compatible
C86: 2 Modes de Chrono Standard et compatible Mac
C87: Locallisation du Bouton Arrivee à Gauche / Centre /Droite de l'écran
L88: En mode Windows le clic droit n'est pas asseez reactif mais pas de pb sii survol du bouton donc à verifier
A89: V2.4f | B89: 2018-11-04 | C89: Modification des boutons Arrivee et Fin en CommandButton pour contrôle clic droit
C90: Dans Bareme choix de la Position Variable du Bouton Arrivée Gauche / Centre / Droite pour écran tactile
A92: V2.4e | B92: 2018-11-02 | C92: Chrono gestion clavier ou Clic Droit => Integrationn d'un Mode compatible pour les version Mac 2016
C93: Choix du mode de Chronometrage dans la page Bareme
A95: V2.4d | B95: 2018-10-28 | C95: Correction Formule " Gauche Projet" => ref directe au Bareme
C96: Correction message info dans Validation donnée Projet 2 => Ordre different CAP/BAC
C97: Correction revalidation du menu contextuel dans arrêt chrono
C98: Note projet C1 devient une Variable dans Bareme Note_C1 dans note projet => valeur 0 pour bac Pro et CAP
C99: Chrono: Ajout de la gestion par Clavier Bas / Esc et Souris Clic Droit
C100: Test sous Android Fonctionne avec Excel Android mais pas les boutons de changement de page
C101: Mise à jour page d'AIDE et des entêtes de tableau dans les classes
A103: V2.4c | B103: 2018-10-26 | C103: Gestion du clavier par API sous 64 bit
A105: V2.4b | B105: 2018-10-15 | C105: Mise à jour de la page d'Aide
C106: Alignement des numeros de version avec le fichier BAC
A108: V2.3d | B108: 2018-10-11 | C108: Correction Macro Exportation (décalage colonne)
C109: Modification signal d'alerte nouvelle gestion des doublons dans transfere)
C110: Modification signal d'alerte (ôter erreur projet C1 car non concerné)
C111: Implementation non activée de l' action clavier pour le Chrono
C112: Modification de l'ordre des Stratégies en lien avec le Referentiel CAP <> BAC
A114: V2.3c | B114: 2018-10-04 | C114: Equivalent à V2,4 BAC Gal
C115: A l'ouverture des macros Contrôle des noms d'Onglet & Boutons du Menu en fonction des Noms de Classe (nv algorithme)
A117: V2.3a | B117: 2018-10-03 | C117: Transfere du Bareme CAP sur la structure 2.4 BAC - Colonnes inutiles masquée mais Note projet C1 maintenue dans l'équation => =0
A119: V2.3 | B119: 2016-09-29 | C119: Ajout de la macro pour changer le sens de déplacement
C120: Ajustement des macros d'effacement après modification de l'ordre des colonnes
C121: Gestion protection par mot de passe
A123: V2.2C | B123: 2018-09-26 | C123: Modification du texte d'aide dans MENU
C124: Modificatin de la zone Classe dans chaque page
A126: V2.2b | B126: 2018-09-25 | C126: Reprise des équations pour Valider les Items acquis avant abandon
C127: Ajustement des priorités d'Alerte
A129: V2.2a | B129: 2018-09-24 | C129: Augmentation du nombre d' Alertes Gérées
A131: V2.2 | B131: 2018-09-16 | C131: Modification de la selection liste de stratégie
A133: V2.1 | B133: 2018-05-13 | C133: Bareme MARS 2018 avec comparaison de la course 3 avec la course 1 en cas de choix de 2 courses identiques = =
C134: Modification du bareme de la note de projet 0-1-1,5-2-3 ou lieu de 0-1-2-2,5-3
C135: Creation de l'Historique
A137: V2.0 | B137: 2018-03-11 | C137: Bareme Mars 2018 / Contrôle de la note d'echauffement saisie manuellement
A139: V1.1 | B139: Fev 2018 | C139: Chrono Compatible PC et MAC
C140: Introduction d'une variable "Tolerence" Parametrable dans la partie bareme pour le choix de 2 courses identiques => Valeur initiale selon texte officiel 3 secondes
A142: v1.0 | B142: 2018-02-27 | C142: Bareme sur base des textes 2016
C143: Chronometre compatible PC mais pb sous MAC
